bitfinex-derivatives/quotes_SOLF0:USTF0_20250831
["timestamp","ask_amount","ask_price","bid_price","bid_amount"]
[1756683382487,2.93,202.01,201.76,74.77955808]
[1756683382689,2.93,201.99,201.77,7.49]
[1756683382892,2.93,201.97,201.77,7.49]
[1756683383183,456.74,201.98,201.77,7.49]
[1756683383582,2.93,201.96,201.77,7.49]
[1756683383984,5.42670269,201.97,201.77,7.49]
[1756683384188,338.16670269,201.98,201.77,7.49]
[1756683384486,2.93,201.96,201.77,7.49]
[1756683384694,2.93,201.94,201.77,7.49]
[1756683385087,67.98,201.93,201.77,7.49]
[1756683385786,2.93,201.92,201.77,7.49]
[1756683386184,67.98,201.93,201.77,7.49]
[1756683386889,2.93,201.92,201.77,7.49]
[1756683387292,2.94,201.92,201.77,7.49]
[1756683387592,67.98,201.93,201.77,7.49]
[1756683387784,2.94,201.92,201.77,7.49]
[1756683387979,67.98,201.93,201.77,7.49]
[1756683389588,2.94,201.92,201.77,7.49]
[1756683390489,67.98,201.93,201.77,7.49]
[1756683390685,2.94,201.92,201.67,4.14962221]
[1756683390993,2.94,201.92,201.68,7.49]
[1756683391593,67.98,201.93,201.68,7.49]
[1756683391794,2.94,201.92,201.68,7.49]
[1756683392598,67.98,201.93,201.68,7.49]
[1756683393092,2.94,201.92,201.68,7.49]
[1756683393494,2.94,201.94,201.68,7.49]
[1756683393794,35.94,201.93,201.68,7.49]
[1756683393997,2.94,201.92,201.7,7.49]
[1756683394192,27.84,201.91,201.7,7.49]
[1756683394788,27.84,201.91,201.71,7.49]
[1756683395900,2.94,201.92,201.71,7.49]
[1756683396602,2.94,201.97,201.75,4.14962221]
[1756683396796,2.94,201.95,201.75,7.49]
[1756683396998,118.52,201.96,201.75,7.49]
[1756683397701,2.94,201.95,201.75,7.49]
[1756683398000,118.52,201.96,201.75,7.49]
[1756683398701,14.86,201.95,201.75,7.49]
[1756683399208,14.86,201.93,201.75,7.49]
[1756683399498,2.94,201.92,201.75,7.49]
[1756683399703,14.86,201.93,201.75,7.49]
[1756683400104,2.94,201.92,201.75,7.49]
[1756683400495,14.86,201.92,201.75,7.49]
[1756683400697,2.94,201.91,201.75,7.49]
[1756683401096,14.86,201.92,201.75,7.49]
[1756683401609,2.94,201.91,201.75,7.49]
[1756683401908,2.94,201.91,201.61,4.11718727]
[1756683401909,2.94,201.9,201.62,7.99]
[1756683402109,14.86,201.91,201.62,7.99]
[1756683402904,2.94,201.88,201.62,7.99]
[1756683403100,2.94,201.86,201.62,7.99]
[1756683403400,8.1,201.87,201.62,7.99]
[1756683403710,2.94,201.85,201.62,7.99]
[1756683406112,1.6,201.84,201.62,7.99]
[1756683406510,2.94,201.83,201.62,7.99]
[1756683406711,2.94,201.83,201.63,7.99]
[1756683410812,5.42,201.83,201.63,7.99]
[1756683411514,2.94,201.85,201.63,7.99]
[1756683411818,2.94,201.86,201.63,7.99]
[1756683412016,1.58,201.85,201.63,7.99]
[1756683412211,1.58,201.85,201.64,7.99]
[1756683412609,2.94,201.84,201.64,7.99]
[1756683412814,2.94,201.84,201.66,7.99]
[1756683413514,2.94,201.84,201.68,7.99]
[1756683414612,1.58,201.85,201.68,7.99]
[1756683415015,2.94,201.84,201.68,7.99]
[1756683415215,1.58,201.85,201.68,7.99]
[1756683415717,2.94,201.84,201.68,7.99]
[1756683416120,1.58,201.85,201.68,7.99]
[1756683416310,2.94,201.84,201.68,7.99]
[1756683416514,1.58,201.85,201.68,7.99]
[1756683417020,2.94,201.83,201.68,7.99]
[1756683417710,333.1,201.84,201.68,7.99]
[1756683417911,2.94,201.83,201.68,7.99]
[1756683418114,333.1,201.84,201.68,7.99]
[1756683418516,2.94,201.83,201.68,7.99]
[1756683418918,333.1,201.84,201.68,7.99]
[1756683419314,2.94,201.83,201.68,7.99]
[1756683419512,333.1,201.84,201.68,7.99]
[1756683420115,2.94,201.83,201.68,7.99]
[1756683420416,333.1,201.84,201.68,7.99]
[1756683420622,2.94,201.83,201.68,7.99]
[1756683421317,333.1,201.84,201.68,7.99]
[1756683421520,333.1,201.84,201.61,4.11689145]
[1756683421521,2.94,201.82,201.62,7.99]
[1756683421822,14.86,201.83,201.62,7.99]
[1756683422320,2.94,201.82,201.62,7.99]
[1756683422520,14.86,201.83,201.62,7.99]
[1756683422720,14.86,201.81,201.62,7.99]
[1756683423423,2.94,201.74,201.58,12.10689145]
[1756683423623,2.94,201.72,201.58,7.99]
[1756683424019,127.6,201.71,201.58,7.99]
[1756683424519,2.94,201.7,201.58,12.10689145]
[1756683426121,2.94,201.7,201.58,7.99]
[1756683426325,127.62,201.69,201.58,7.99]
[1756683426524,2.94,201.68,201.58,7.99]
[1756683428021,2.95,201.68,201.56,4.15350932]
[1756683428226,2.95,201.68,201.54,8.05]
[1756683428420,2.95,201.68,201.5,4.15350932]
[1756683428616,2.95,201.68,201.5,12.20350932]
[1756683428821,266.5,201.69,201.5,12.20350932]
[1756683429216,266.5,201.69,201.5,8.05]
[1756683429529,127.62,201.68,201.5,8.05]
[1756683429827,2.95,201.66,201.5,8.05]
[1756683430016,2.95,201.68,201.5,8.05]
[1756683430221,2.95,201.64,201.5,8.05]
[1756683430522,101.78,201.65,201.46,8.05]
[1756683430823,127.62,201.64,201.46,8.05]
[1756683431018,127.62,201.63,201.47,8.05]
[1756683431223,127.62,201.62,201.47,12.20350932]
[1756683431522,127.62,201.62,201.48,8.05]
[1756683432024,2.95,201.61,201.48,8.05]
[1756683432627,127.64,201.6,201.48,8.05]
[1756683433124,2.95,201.61,201.48,8.05]
[1756683433326,127.64,201.6,201.48,8.05]
[1756683433729,2.95,201.59,201.48,8.05]
[1756683434232,2.95,201.57,201.48,8.05]
[1756683434422,127.64,201.56,201.39,8.05]
[1756683434623,2.95,201.54,201.39,8.05]
[1756683435131,125.92,201.53,201.39,8.05]
[1756683435833,127.64,201.52,201.39,8.05]
[1756683438435,127.66,201.52,201.39,8.05]
[1756683438830,2.95,201.54,201.39,8.05]
[1756683439034,2.95,201.54,201.4,8.05]
[1756683440137,2.95,201.59,201.4,8.05]
[1756683440328,51.04,201.58,201.4,8.05]
[1756683440528,2.95,201.59,201.4,8.05]
[1756683440728,2.95,201.59,201.41,8.05]
[1756683440729,55.44,201.58,201.41,8.05]
[1756683441131,2.95,201.57,201.41,8.05]
[1756683442233,17.83,201.54,201.4,4.15350932]
[1756683442433,2.95,201.49,201.31,4.15350932]
[1756683442736,14.88,201.5,201.3,8.05]
[1756683442737,2.95,201.47,201.3,8.05]
[1756683442936,15.48,201.46,201.3,8.05]
[1756683443141,18.37,201.47,201.3,8.05]
[1756683444730,18.37,201.47,201.31,8.05]
[1756683446334,2.96,201.46,201.31,8.05]
[1756683446534,2.96,201.46,201.24,8.05]
[1756683448230,15.42,201.47,201.24,8.05]
[1756683448231,30.3,201.47,201.24,8.05]
[1756683448834,2.96,201.46,201.24,8.05]
[1756683449140,14.88,201.45,201.24,8.05]
[1756683449340,2.96,201.44,201.24,8.05]
[1756683449742,14.88,201.41,201.24,8.05]
[1756683450043,2.96,201.45,201.16,8.05]
[1756683450335,17.84,201.41,201.16,8.05]
[1756683450538,14.88,201.41,201.16,8.05]
[1756683451242,124.0,201.43,201.16,8.05]
[1756683451537,89.48,201.42,201.16,8.05]
[1756683451941,2.96,201.41,201.17,8.05]
[1756683452339,104.36,201.42,201.17,8.05]
[1756683452639,2.96,201.4,201.17,8.05]
[1756683452842,124.0,201.46,201.17,8.05]
[1756683453038,62.1,201.45,201.17,8.05]
[1756683453238,2.96,201.44,201.17,8.05]
[1756683453434,14.88,201.44,201.17,8.05]
[1756683453637,2.96,201.43,201.17,8.05]
[1756683454040,46.3,201.42,201.18,8.05]
[1756683454542,2.96,201.41,201.16,8.05]
[1756683454749,2.96,201.41,201.18,8.05]
[1756683455644,2.96,201.41,201.2,4.15350932]
[1756683455843,2.96,201.41,201.21,8.05]
[1756683456642,28.5,201.42,201.21,8.05]
[1756683456850,135.04,201.45,201.21,4.15350932]
[1756683457035,132.08,201.45,201.23,8.05]
[1756683457345,2.96,201.44,201.23,8.05]
[1756683457545,132.08,201.45,201.23,8.05]
[1756683457750,2.96,201.44,201.23,8.05]
[1756683458745,2.96,201.44,201.24,7.3]
[1756683460141,2.96,201.44,201.24,139.4]
[1756683460446,2.96,201.44,201.25,7.3]
[1756683460746,134.96,201.44,201.25,7.3]
[1756683461247,2.96,201.43,201.27,7.3]
[1756683461741,132.0,201.44,201.27,7.3]
[1756683462341,2.96,201.43,201.27,7.3]
[1756683462542,132.0,201.44,201.27,7.3]
[1756683462742,2.96,201.43,201.27,7.3]
[1756683463341,132.0,201.44,201.27,7.3]
[1756683463647,146.88,201.44,201.27,7.3]
[1756683463840,2.96,201.42,201.2,7.3]
[1756683464645,14.88,201.42,201.2,7.3]
[1756683464837,2.96,201.4,201.2,7.3]
[1756683465347,14.88,201.41,201.2,7.3]
[1756683465547,2.96,201.4,201.2,7.3]
[1756683465743,14.88,201.43,201.2,7.3]
[1756683465941,2.96,201.4,201.2,7.3]
[1756683466141,14.88,201.41,201.2,7.3]
[1756683466336,2.96,201.4,201.2,7.3]
[1756683466740,14.88,201.41,201.2,7.3]
[1756683467446,2.96,201.4,201.2,7.3]
[1756683467639,14.88,201.41,201.2,7.3]
[1756683467842,2.96,201.4,201.2,7.3]
[1756683468039,14.88,201.41,201.2,7.3]
[1756683468441,2.96,201.4,201.2,7.3]
[1756683468648,14.88,201.41,201.2,7.3]
[1756683468847,14.88,201.42,201.2,7.3]
[1756683469150,2.96,201.41,201.2,7.3]
[1756683469747,14.88,201.42,201.2,7.3]
[1756683469940,2.96,201.42,201.2,7.3]
[1756683470142,17.84,201.41,201.2,7.3]
[1756683470343,17.84,201.4,201.2,7.3]
[1756683470543,2.96,201.39,201.2,7.3]
[1756683470847,14.88,201.39,201.2,7.3]
[1756683471047,2.96,201.38,201.2,7.3]
[1756683471354,14.88,201.41,201.2,7.3]
[1756683471649,2.96,201.39,201.2,7.3]
[1756683472250,2.96,201.39,201.21,7.3]
[1756683473057,2.96,201.39,201.21,4.15350932]
[1756683473247,2.96,201.39,201.24,7.3]
[1756683474155,20.3,201.4,201.25,7.3]
[1756683474449,2.96,201.39,201.25,7.3]
[1756683474752,20.3,201.4,201.25,7.3]
[1756683475146,2.96,201.39,201.25,7.3]
[1756683476146,20.3,201.4,201.25,7.3]
[1756683476347,2.96,201.39,201.2,7.3]
[1756683476959,2.96,201.39,201.21,7.3]
[1756683477158,20.3,201.4,201.21,7.3]
[1756683477454,2.96,201.39,201.21,7.3]
[1756683479547,20.3,201.4,201.21,7.3]
[1756683479754,2.96,201.39,201.21,7.3]
[1756683480150,20.3,201.4,201.21,7.3]
[1756683480459,19.4,201.39,201.24,7.3]
[1756683480759,19.4,201.39,201.25,7.3]
[1756683480961,19.4,201.39,201.26,7.3]
[1756683481650,16.44,201.39,201.26,7.3]
[1756683482156,2.96,201.38,201.21,7.3]
[1756683482455,31.32,201.39,201.21,7.3]
[1756683483253,14.88,201.47,201.21,7.3]
[1756683483560,14.88,201.43,201.22,7.3]
[1756683483760,7.48,201.46,201.22,7.3]
[1756683483960,7.48,201.46,201.24,7.3]
[1756683484154,7.48,201.46,201.25,7.3]
[1756683484557,2.96,201.45,201.25,7.3]
[1756683484757,2.96,201.45,201.26,7.3]
[1756683485761,2.96,201.45,201.27,7.3]
[1756683486259,2.96,201.45,201.29,4.15350932]
[1756683486456,2.96,201.45,201.31,7.3]
[1756683486657,2.96,201.45,201.32,7.3]
[1756683487156,2.96,201.45,201.32,11.45350932]
[1756683487554,2.96,201.45,201.32,7.3]
[1756683487958,2.96,201.45,201.32,4.15350932]
[1756683488159,2.96,201.45,201.33,7.86]
[1756683488663,333.56,201.48,201.35,7.86]
[1756683488855,464.58,201.48,201.36,7.86]
[1756683489562,464.52,201.48,201.36,12.01350932]
[1756683489961,464.52,201.48,201.37,7.86]
[1756683490361,464.52,201.48,201.38,4.15350932]
[1756683490560,464.52,201.48,201.39,12.01350932]
[1756683491161,464.52,201.48,201.39,7.86]
[1756683491362,467.47,201.48,201.39,7.86]
[1756683491565,467.47,201.48,201.35,12.01350932]
[1756683491762,467.47,201.48,201.36,7.86]
[1756683492568,467.47,201.48,201.38,7.86]
[1756683492764,467.47,201.48,201.38,12.01350932]
[1756683493266,467.47,201.48,201.38,7.86]
[1756683493662,336.51,201.48,201.38,7.86]
[1756683493865,130.96,201.49,201.38,7.86]
[1756683494064,130.86,201.52,201.4,12.01350932]
[1756683494362,130.86,201.52,201.41,7.86]
[1756683495565,130.86,201.52,201.42,4.15350932]
[1756683495772,130.86,201.52,201.43,7.86]
[1756683498164,2.95,201.51,201.43,7.86]
[1756683499073,2.95,201.51,201.39,7.86]
[1756683499670,2.95,201.51,201.39,4.14982448]
[1756683499871,2.95,201.51,201.4,7.86]
[1756683501072,130.86,201.52,201.4,7.86]
[1756683501272,2.95,201.51,201.4,7.86]
[1756683501481,130.86,201.52,201.4,7.86]
[1756683502070,2.95,201.51,201.36,7.86]
[1756683502272,130.86,201.52,201.36,7.86]
[1756683502883,2.95,201.51,201.36,7.86]
[1756683503186,130.86,201.52,201.36,7.86]
[1756683503878,2.95,201.51,201.36,7.86]
[1756683504987,130.86,201.52,201.36,7.86]
[1756683505680,2.97,201.51,201.36,7.86]
[1756683505886,127.94,201.5,201.36,7.86]
[1756683506278,2.97,201.49,201.36,7.86]
[1756683506486,127.94,201.5,201.31,7.86]
[1756683507479,14.88,201.43,201.22,4.14982448]
[1756683507688,2.97,201.38,201.18,7.86]
[1756683507883,14.88,201.41,201.18,7.86]
[1756683508085,2.97,201.39,201.18,7.86]
[1756683508383,124.0,201.4,201.18,7.86]
[1756683509180,2.97,201.39,201.18,7.86]
[1756683509482,124.0,201.4,201.18,7.86]
[1756683510280,131.08,201.39,201.18,7.86]
[1756683510583,131.02,201.38,201.19,7.86]
[1756683510781,2.97,201.37,201.19,7.86]
[1756683511975,131.02,201.38,201.19,7.86]
[1756683512186,2.97,201.37,201.19,7.86]
[1756683512383,14.88,201.33,201.1,5.53282961]
[1756683512583,14.88,201.29,201.04,5.53282961]
[1756683512782,14.88,201.27,201.02,7.86]
[1756683513085,466.18,201.26,201.02,7.86]
[1756683513291,132.38,201.25,201.02,7.86]
[1756683515280,333.8,201.26,201.02,7.86]
[1756683515485,132.32,201.25,201.02,7.86]
[1756683515680,124.0,201.24,201.02,7.86]
[1756683518177,138.88,201.24,201.02,7.86]
[1756683518587,132.32,201.25,201.02,7.86]
[1756683518990,348.68,201.26,201.02,7.86]
[1756683518991,333.8,201.26,201.02,7.86]
[1756683519281,133.52,201.25,201.02,7.86]
[1756683521188,148.4,201.25,201.02,7.86]
[1756683521582,333.8,201.26,201.02,7.86]
[1756683521888,134.24,201.25,201.02,7.86]
[1756683522882,14.88,201.24,201.02,7.86]
[1756683523684,134.24,201.23,201.02,7.86]
[1756683526196,333.8,201.26,201.02,7.86]
[1756683526398,134.18,201.25,201.02,7.86]
[1756683527494,134.0,201.24,201.02,4.66]
[1756683527693,134.0,201.24,201.03,7.79]
[1756683529292,333.8,201.26,201.03,7.79]
[1756683529498,133.96,201.25,201.03,7.79]
[1756683531591,133.96,201.25,201.04,7.79]
[1756683534394,348.68,201.26,201.04,7.79]
[1756683534596,133.6,201.24,201.04,7.79]
[1756683536402,14.88,201.23,201.04,7.79]
[1756683536905,7.37,201.13,200.96,184.1]
[1756683537111,133.9,201.12,200.96,184.1]
[1756683538901,133.9,201.12,200.97,7.79]
[1756683540602,7.37,201.13,200.97,7.79]
[1756683541308,131.76,201.14,200.97,7.79]
[1756683541510,7.37,201.16,200.97,7.79]
[1756683541709,83.04,201.18,200.97,7.79]
[1756683542008,7.37,201.22,200.97,7.79]
[1756683542009,4.32,201.21,200.97,7.79]
[1756683542403,7.37,201.2,200.97,7.79]
[1756683542606,7.37,201.2,200.99,7.79]
[1756683543309,333.8,201.26,200.99,7.79]
[1756683543310,7.37,201.25,200.99,7.79]
[1756683543908,7.37,201.25,201.01,7.79]
[1756683544109,455.82,201.26,201.03,7.79]
[1756683544316,7.37,201.25,201.03,7.79]
[1756683544507,22.25,201.25,201.03,7.79]
[1756683545810,7.37,201.22,200.97,7.79]
[1756683546004,22.25,201.2,200.97,7.79]
[1756683546214,7.37,201.18,200.97,7.79]
[1756683546812,4.32,201.17,200.97,7.79]
[1756683547004,7.37,201.16,200.98,7.79]
[1756683547411,7.37,201.16,201.0,7.79]
[1756683547609,4.32,201.17,201.0,7.79]
[1756683547809,7.37,201.16,201.0,7.79]
[1756683548318,7.37,201.16,200.89,7.77]
[1756683548520,22.26,201.16,200.84,7.77]
[1756683548815,22.29,201.11,200.84,7.77]
[1756683549018,22.29,201.09,200.84,7.77]
[1756683549607,7.41,201.07,200.84,7.77]
[1756683550018,136.12,201.06,200.84,7.77]
[1756683550219,136.12,201.06,200.83,5.53282961]
[1756683550220,7.41,201.05,200.85,7.77]
[1756683550617,7.41,201.05,200.87,7.77]
[1756683550822,433.57,201.1,200.87,7.77]
[1756683551009,426.16,201.1,200.86,5.53282961]
[1756683551213,7.41,201.09,200.9,7.77]
[1756683551715,7.41,201.09,200.86,7.77]
[1756683551716,22.29,201.09,200.86,7.77]
[1756683551911,7.41,201.09,200.86,7.77]
[1756683552109,7.41,201.07,200.86,7.77]
[1756683552317,136.58,201.06,200.86,7.77]
[1756683552510,136.58,201.06,200.87,7.77]
[1756683552712,7.41,201.07,200.89,5.53282961]
[1756683552910,144.07,201.07,200.9,7.77]
[1756683553116,144.07,201.07,200.91,13.30282961]
[1756683553417,144.07,201.07,200.9,5.53282961]
[1756683553619,7.41,201.07,200.82,5.53282961]
[1756683553812,7.41,201.05,200.77,5.53282961]
[1756683554012,7.41,201.05,200.78,5.53282961]
[1756683554219,131.41,201.05,200.75,5.53282961]
[1756683554419,137.48,201.04,200.74,0.86640442]
[1756683554620,7.41,201.03,200.74,6.39923403]
[1756683554921,7.41,201.03,200.71,0.86655544]
[1756683555122,7.41,201.03,200.71,6.39938505]
[1756683555323,7.41,201.03,200.72,5.53282961]
[1756683555519,7.41,201.01,200.76,7.77]
[1756683555720,7.41,200.99,200.77,5.53282961]
[1756683556018,7.41,200.97,200.78,7.77]
[1756683556214,7.41,200.95,200.73,7.77]
[1756683556417,7.41,200.93,200.73,7.77]
[1756683560230,9.22,200.94,200.68,0.86673889]
[1756683560231,22.29,200.92,200.68,7.77]
[1756683560424,7.41,200.92,200.68,7.77]
[1756683561830,7.41,200.9,200.68,7.77]
[1756683562825,116.17,200.9,200.68,7.77]
[1756683563028,116.17,200.9,200.69,334.52]
[1756683563231,116.17,200.9,200.7,7.77]
[1756683563625,7.41,200.94,200.7,7.77]
[1756683563826,7.41,200.94,200.71,7.77]
[1756683564041,7.41,200.94,200.72,13.30282961]
[1756683564233,4.76,200.96,200.74,7.77]
[1756683564427,4.76,200.96,200.72,5.53282961]
[1756683564428,4.76,200.96,200.75,140.56]
[1756683564624,4.76,200.96,200.76,7.77]
[1756683566332,4.76,200.96,200.78,7.77]
[1756683566741,7.41,200.98,200.78,7.77]
[1756683567941,7.41,200.98,200.77,23.24]
[1756683567942,7.41,200.98,200.8,7.77]
[1756683569637,7.41,200.98,200.82,7.77]
[1756683571538,7.41,201.03,200.82,7.77]
[1756683571943,7.41,201.03,200.83,58.88]
[1756683572147,7.41,201.03,200.84,103.31]
[1756683572341,7.41,201.03,200.85,125.39]
[1756683572543,7.41,201.03,200.86,7.77]
[1756683572747,7.41,201.03,200.88,7.77]
[1756683573742,334.52,201.04,200.83,342.27]
[1756683573950,7.41,201.03,200.83,342.27]
[1756683574252,334.52,201.04,200.83,342.27]
[1756683574644,7.41,201.03,200.83,342.27]
[1756683574839,334.52,201.04,200.83,342.27]
[1756683575246,7.41,201.03,200.83,342.27]
[1756683575449,334.52,201.04,200.83,342.27]
[1756683575750,7.41,201.03,200.83,342.27]
[1756683575945,7.41,201.03,200.84,7.77]
[1756683576845,7.41,201.03,200.84,147.51]
[1756683577353,7.41,201.03,200.85,7.77]
[1756683577846,7.41,201.03,200.85,147.37]
[1756683578153,7.53,201.03,200.85,147.37]
[1756683578450,7.53,201.03,200.85,7.77]
[1756683579951,473.98,201.04,200.85,147.13]
[1756683580145,7.53,201.03,200.85,7.77]
[1756683583854,334.52,201.04,200.85,7.77]
[1756683583855,7.53,201.01,200.85,7.77]
[1756683584754,7.53,201.01,200.82,7.58]
[1756683589757,8.39638285,201.01,200.82,7.58]
[1756683591961,7.53,200.99,200.82,7.58]
[1756683594761,101.18,200.98,200.82,7.58]
[1756683595154,7.53,200.97,200.82,7.58]
[1756683600469,7.53,200.97,200.8,7.58]
[1756683603564,7.53,200.95,200.8,7.58]
[1756683604368,7.53,200.93,200.8,7.58]
[1756683604974,144.07,200.93,200.8,7.58]
[1756683605573,144.07,200.93,200.75,7.58]
[1756683606472,144.07,200.93,200.71,4.1233201]
[1756683606662,144.07,200.93,200.67,7.58]
[1756683606663,3.54012463,200.79,200.67,7.58]
[1756683606861,7.53,200.77,200.67,7.58]
[1756683608671,334.56,200.83,200.68,3.54012463]
[1756683608672,7.65,200.82,200.68,3.54012463]
[1756683609072,7.65,200.82,200.69,7.61]
[1756683609273,7.65,200.8,200.69,7.61]
[1756683610069,3.54012463,200.79,200.69,7.61]
[1756683610572,145.63,200.8,200.69,7.61]
[1756683611166,145.63,200.8,200.63,4.1233201]
[1756683611372,7.65,200.78,200.62,0.17764]
[1756683611675,138.54,200.77,200.63,7.61]
[1756683611872,138.54,200.76,200.63,7.61]
[1756683612068,138.54,200.76,200.64,3.54012463]
[1756683612876,7.65,200.75,200.64,3.54012463]
[1756683613881,7.65,200.75,200.63,7.61]
[1756683617574,106.26,200.74,200.63,7.61]
[1756683617973,145.55,200.75,200.63,7.61]
[1756683618373,7.65,200.75,200.65,7.61]
[1756683618572,104.42,200.78,200.68,7.61]
[1756683619179,7.65,200.79,200.68,7.61]
[1756683619383,455.35,200.83,200.69,7.61]
[1756683620283,455.35,200.83,200.72,7.61]
[1756683621676,342.21,200.83,200.72,11.15012463]
[1756683622276,7.65,200.88,200.75,3.54012463]
[1756683622484,7.65,200.88,200.76,7.61]
[1756683622682,134.82,200.87,200.76,7.61]
[1756683622977,7.65,200.88,200.76,7.61]
[1756683622978,7.65,200.88,200.77,7.61]
[1756683623182,7.65,200.88,200.76,3.54012463]
[1756683623183,137.62,200.91,200.82,3.54012463]
[1756683623384,7.65,200.92,200.82,3.54012463]
[1756683623790,103.62,200.94,200.85,3.54012463]
[1756683624083,7.65,200.95,200.85,3.54012463]
[1756683624385,342.45,201.0,200.88,11.15012463]
[1756683624584,104.38,200.99,200.88,11.15012463]
[1756683626282,342.45,201.0,200.88,11.15012463]
[1756683626480,137.48,200.99,200.88,11.15012463]
[1756683626684,137.48,200.99,200.91,3.54012463]
[1756683626880,7.65,200.98,200.8,7.61]
[1756683627084,7.65,200.98,200.83,3.54012463]
[1756683627286,7.65,200.96,200.83,3.54012463]
[1756683627586,137.42,200.95,200.84,7.61]
[1756683627885,7.65,200.94,200.84,7.61]
[1756683628085,7.65,200.94,200.82,3.54012463]
[1756683629391,7.65,200.94,200.81,7.61]
[1756683629591,7.65,200.94,200.81,11.15012463]
[1756683630801,7.65,200.94,200.81,7.61]
[1756683631002,7.65,200.94,200.78,3.54012463]
[1756683631202,7.65,200.91,200.77,7.61]
[1756683632302,3.54012463,200.9,200.77,7.61]
[1756683632499,7.65,200.89,200.77,7.61]
[1756683632700,55.26,200.88,200.77,7.61]
[1756683635799,7.65,200.89,200.77,7.61]
[1756683636008,69.89,200.89,200.77,11.15012463]
[1756683636506,7.65,200.96,200.81,11.15012463]
[1756683636800,106.79,200.96,200.84,11.15012463]
[1756683637601,7.65,200.96,200.87,3.54012463]
[1756683638197,7.65,200.96,200.87,11.50012463]
[1756683639207,334.8,201.0,200.87,11.50012463]
[1756683639408,471.06,201.0,200.9,3.54012463]
[1756683640100,334.8,201.0,200.9,3.54012463]
[1756683640306,334.8,201.0,200.9,11.50012463]
[1756683640506,7.9,200.99,200.87,3.54012463]
[1756683641099,7.9,200.99,200.85,7.96]
[1756683641100,7.9,200.99,200.85,11.50012463]
[1756683641606,7.9,200.97,200.85,7.96]